bitfinex/quotes_SOLUSD_20250806
["timestamp","ask_amount","ask_price","bid_price","bid_amount"]
[1754458020672,8.40503099,163.84,163.82,6.10153]
[1754458020896,0.71,163.83,163.82,6.10153]
[1754458021804,9.11503099,163.83,163.82,5.38153]
[1754458022175,9.11503099,163.83,163.82,4.66153]
[1754458022176,13.20871095,163.83,163.82,4.66153]
[1754458022592,13.20871095,163.83,163.81,0.06]
[1754458022871,41.21929176,163.82,163.81,0.06]
[1754458023069,45.31297172,163.82,163.81,0.06]
[1754458025587,41.21929176,163.82,163.81,0.06]
[1754458026209,45.31171485,163.82,163.81,0.06]
[1754458027589,89.63171485,163.82,163.81,0.06]
[1754458030306,98.03674584,163.82,163.79,0.06]
[1754458030520,42.81006198,163.8,163.79,0.06]
[1754458030727,38.49745408,163.8,163.79,0.06]
[1754458031037,39.19745408,163.8,163.79,0.06]
[1754458031400,45.30246018,163.8,163.79,0.06]
[1754458031607,27.70749117,163.8,163.79,0.06]
[1754458031928,32.49949019,163.8,163.79,0.06]
[1754458032507,27.70749117,163.8,163.79,0.06]
[1754458032786,19.30246018,163.8,163.79,0.06]
[1754458033611,27.70749117,163.8,163.79,0.06]
[1754458036329,19.30246018,163.8,163.79,0.06]
[1754458036912,44.60246018,163.8,163.79,0.06]
[1754458037116,40.51003709,163.8,163.79,0.06]
[1754458041146,32.1050061,163.8,163.79,0.73]
[1754458041328,44.32,163.82,163.79,0.73]
[1754458041329,14.50974377,163.81,163.79,0.73]
[1754458041830,44.32,163.82,163.79,0.73]
[1754458041831,50.4243497,163.82,163.79,0.73]
[1754458042335,44.32,163.82,163.79,0.73]
[1754458042527,0.03,163.81,163.8,8.40503099]
[1754458042716,0.03,163.81,163.8,9.07503099]
[1754458043534,0.03,163.81,163.8,0.67]
[1754458044718,0.03,163.81,163.8,9.07503099]
[1754458045520,0.03,163.81,163.8,0.67]
[1754458050040,0.03,163.81,163.79,0.06]
[1754458050234,8.40503099,163.8,163.79,0.06]
[1754458051033,9.10503099,163.8,163.79,0.06]
[1754458052130,15.21003709,163.8,163.79,0.06]
[1754458053145,6.8050061,163.8,163.79,0.06]
[1754458053313,6.1050061,163.8,163.79,0.73]
[1754458053519,6.13471123,163.81,163.79,0.73]
[1754458053838,0.03,163.81,163.79,9.13503099]
[1754458054046,0.03,163.81,163.8,0.67]
[1754458054565,0.03,163.81,163.8,9.07503099]
[1754458054724,0.03,163.81,163.8,0.67]
[1754458056223,0.03,163.81,163.79,0.73]
[1754458056840,8.40503099,163.8,163.79,0.06]
[1754458057218,9.09503099,163.8,163.79,0.06]
[1754458057439,8.40503099,163.8,163.79,0.06]
[1754458057847,52.67503099,163.81,163.79,0.06]
[1754458058052,58.77966678,163.81,163.79,0.73]
[1754458058224,50.37463579,163.81,163.8,0.67]
[1754458058752,50.37463579,163.81,163.79,0.06]
[1754458058943,50.37463579,163.81,163.79,0.73]
[1754458059437,50.37463579,163.81,163.79,0.06]
[1754458059828,0.03,163.81,163.8,9.07503099]
[1754458060030,0.03,163.81,163.8,8.40503099]
[1754458060231,0.03,163.81,163.8,9.07503099]
[1754458061840,0.03,163.81,163.8,0.67]
[1754458064383,4.12745696,163.81,163.8,0.67]
[1754458064588,0.03,163.81,163.8,0.67]
[1754458064756,4.12745696,163.81,163.79,0.06]
[1754458065161,4.12745696,163.81,163.79,0.73]
[1754458065572,4.12745696,163.81,163.79,8.46503099]
[1754458065880,0.03,163.81,163.8,24.18124656]
[1754458066684,0.03,163.81,163.8,113.28124656]
[1754458067253,0.03,163.81,163.8,119.38625266]
[1754458068084,0.03,163.81,163.8,163.58625266]
[1754458068470,0.03,163.81,163.8,149.07621557]
[1754458068654,0.03,163.81,163.8,157.48124656]
[1754458069593,0.03,163.81,163.8,156.81124656]
[1754458069893,0.03,163.81,163.8,104.20621557]
[1754458071390,0.03,163.81,163.8,15.10621557]
[1754458071762,0.03,163.81,163.79,89.16]
[1754458071958,0.72,163.81,163.79,89.16]
[1754458072574,0.72,163.81,163.79,0.06]
[1754458074876,6.82466899,163.81,163.79,0.06]
[1754458075252,6.13466899,163.81,163.79,0.06]
[1754458075968,6.82466899,163.81,163.79,0.06]
[1754458076278,0.69,163.8,163.79,0.06]
[1754458078365,6.7950061,163.8,163.79,0.06]
[1754458078799,19.30717689,163.8,163.79,0.06]
[1754458079212,10.9021459,163.8,163.79,0.06]
[1754458079497,19.30717689,163.8,163.79,0.06]
[1754458082197,10.9021459,163.8,163.79,0.06]
[1754458082404,10.2121459,163.8,163.79,0.06]
[1754458084371,4.1071398,163.8,163.79,0.78]
[1754458085915,4.1071398,163.8,163.79,0.06]
[1754458086216,19.27717689,163.8,163.79,0.06]
[1754458086400,4.1071398,163.8,163.79,0.06]
[1754458088005,4.7671398,163.8,163.79,0.06]
[1754458088870,4.1071398,163.8,163.79,0.78]
[1754458089383,4.1071398,163.8,163.79,24.29124656]
[1754458089695,0.03,163.81,163.8,15.10621557]
[1754458089901,0.03,163.81,163.8,24.23124656]
[1754458090219,4.1371398,163.81,163.8,30.33625266]
[1754458090378,0.03,163.81,163.8,30.33625266]
[1754458091410,0.03,163.81,163.8,15.10621557]
[1754458091795,0.03,163.81,163.8,23.51124656]
[1754458093207,0.03,163.81,163.8,8.40503099]
[1754458093413,0.03,163.81,163.79,0.06]
[1754458093414,0.03,163.81,163.79,23.57124656]
[1754458093710,0.03,163.81,163.8,8.40503099]
[1754458094097,0.03,163.81,163.8,9.12503099]
[1754458095702,0.03,163.81,163.8,0.72]
[1754458095904,0.03,163.81,163.8,9.12503099]
[1754458096081,0.03,163.81,163.79,97.56503099]
[1754458096507,0.03,163.81,163.79,98.28503099]
[1754458096706,0.03,163.81,163.8,8.40503099]
[1754458097026,0.03,163.81,163.8,9.12503099]
[1754458098541,0.03,163.81,163.8,0.72]
[1754458098712,0.03,163.81,163.8,9.12503099]
[1754458099233,0.03,163.81,163.8,15.23003709]
[1754458099435,0.03,163.81,163.8,30.33625266]
[1754458100911,0.03,163.81,163.8,119.43625266]
[1754458102113,0.03,163.81,163.8,111.03122167]
[1754458102307,0.03,163.81,163.8,119.43625266]
[1754458103341,0.03,163.81,163.8,113.33124656]
[1754458104344,0.03,163.81,163.8,119.43625266]
[1754458104915,0.03,163.81,163.8,104.92621557]
[1754458105137,0.03,163.81,163.8,113.33124656]
[1754458106644,0.03,163.81,163.8,112.61124656]
[1754458107529,0.03,163.81,163.8,113.33124656]
[1754458107909,0.03,163.81,163.8,113.39124656]
[1754458108309,0.03,163.81,163.8,112.67124656]
[1754458109246,0.03,163.81,163.8,113.39124656]
[1754458109450,0.03,163.81,163.8,30.39625266]
[1754458113722,0.03,163.81,163.8,128.51178426]
[1754458113934,4.11127318,163.86,163.81,15.10621557]
[1754458114219,4.11127318,163.88,163.86,15.10621557]
[1754458114424,0.03,163.89,163.82,89.8]
[1754458114425,4.78127318,163.87,163.82,89.8]
[1754458114662,0.67,163.86,163.84,8.40503099]
[1754458115020,4.11127318,163.86,163.84,8.40503099]
[1754458115223,4.11127318,163.87,163.83,65.94978763]
[1754458115431,4.78127318,163.87,163.84,8.40503099]
[1754458115746,0.67,163.87,163.84,9.10503099]
[1754458115952,4.78127318,163.87,163.84,9.10503099]
[1754458116121,0.67,163.87,163.84,9.10503099]
[1754458116322,4.78127318,163.87,163.85,8.40503099]
[1754458116629,0.67,163.87,163.85,8.40503099]
[1754458116827,4.78127318,163.87,163.85,8.40503099]
[1754458117047,0.67,163.87,163.85,8.40503099]
[1754458117221,4.78127318,163.87,163.85,8.40503099]
[1754458117418,0.67,163.86,163.84,8.40503099]
[1754458117725,0.67,163.86,163.83,15.10621557]
[1754458118137,9.07503099,163.86,163.83,15.10621557]
[1754458118340,8.40503099,163.86,163.83,15.10621557]
[1754458118531,0.67,163.85,163.83,15.10621557]
[1754458119943,12.51630417,163.86,163.81,147.64965826]
[1754458120146,12.51630417,163.86,163.81,52.44503099]
[1754458120147,0.67,163.85,163.81,52.44503099]
[1754458120347,4.78127318,163.85,163.81,52.44503099]
[1754458120533,4.11127318,163.85,163.81,52.44503099]
[1754458120860,0.67,163.84,163.81,58.54961871]
[1754458121061,0.67,163.85,163.81,59.24961871]
[1754458121556,18.6191034,163.86,163.81,59.24961871]
[1754458121740,0.67,163.84,163.81,59.24961871]
[1754458122743,4.11127318,163.85,163.81,59.24961871]
[1754458122951,4.78127318,163.85,163.82,0.7]
[1754458123348,4.78127318,163.85,163.81,58.54961871]
[1754458123657,0.67,163.84,163.81,59.24961871]
[1754458123958,0.67,163.84,163.81,53.14503099]
[1754458124165,0.67,163.83,163.81,44.04]
[1754458124534,0.67,163.83,163.8,0.06]
[1754458124535,0.67,163.82,163.8,0.06]
[1754458125962,9.07503099,163.82,163.8,0.06]
[1754458126146,0.67,163.81,163.8,0.06]
[1754458127181,4.77535229,163.81,163.8,0.06]
[1754458127465,4.10535229,163.82,163.8,0.76]
[1754458127647,4.10535229,163.82,163.81,0.7]
[1754458127842,4.10535229,163.84,163.81,0.7]
[1754458128034,4.10535229,163.83,163.82,0.7]
[1754458128240,4.10535229,163.84,163.82,0.7]
[1754458128681,4.10535229,163.85,163.82,0.7]
[1754458128973,4.10535229,163.84,163.82,0.7]
[1754458129186,4.10535229,163.83,163.82,0.7]
[1754458129369,4.10535229,163.85,163.82,9.10503099]
[1754458129562,12.51038328,163.84,163.8,0.06]
[1754458129757,4.10535229,163.83,163.8,0.06]
[1754458130164,4.77535229,163.83,163.8,0.06]
[1754458130351,4.10535229,163.82,163.8,0.06]
[1754458130685,4.77535229,163.82,163.81,15.10621557]
[1754458130872,0.67,163.82,163.81,15.10621557]
[1754458131271,4.77535229,163.82,163.81,15.10621557]
[1754458131472,4.77535229,163.84,163.81,15.10621557]
[1754458131778,4.77535229,163.83,163.81,15.10621557]
[1754458131976,4.10535229,163.82,163.81,15.10621557]
[1754458133164,0.67,163.82,163.81,15.10621557]
[1754458133464,4.77535229,163.82,163.81,15.10621557]
[1754458133651,4.10535229,163.83,163.81,21.21082463]
[1754458133851,4.10535229,163.82,163.81,21.91082463]
[1754458134050,4.10535229,163.83,163.81,21.91082463]
[1754458134280,4.10535229,163.82,163.81,21.91082463]
[1754458135548,4.10535229,163.83,163.81,21.91082463]
[1754458135752,4.10535229,163.82,163.81,21.91082463]
[1754458135970,4.10535229,163.83,163.81,15.80621557]
[1754458136177,4.10535229,163.82,163.81,15.10621557]
[1754458136498,4.10535229,163.83,163.81,119.41584291]
[1754458136698,4.10535229,163.82,163.81,118.71584291]
[1754458136870,4.10535229,163.85,163.81,118.71584291]
[1754458137072,4.10535229,163.84,163.81,118.71584291]
[1754458137372,4.10535229,163.83,163.81,119.41584291]
[1754458137574,0.67,163.85,163.81,119.41584291]
[1754458137805,4.11213471,163.84,163.81,119.41584291]
[1754458138128,4.11213471,163.83,163.81,119.41584291]
[1754458138400,5.1388247,163.87,163.83,15.10621557]
[1754458138593,4.11212197,163.86,163.84,9.10503099]
[1754458138895,4.11212197,163.85,163.84,8.40503099]
[1754458139403,4.11212197,163.85,163.84,9.10503099]
[1754458139880,4.11212197,163.87,163.84,9.10503099]
[1754458140200,4.11212197,163.86,163.84,15.20830288]
[1754458140495,4.11212197,163.85,163.84,15.20830288]
[1754458140683,0.67,163.88,163.84,15.20830288]
[1754458140684,4.11212197,163.87,163.84,15.20830288]
[1754458140883,4.11212197,163.86,163.85,23.51124656]
[1754458141391,4.11212197,163.86,163.85,24.21124656]
[1754458141599,0.7,163.89,163.85,24.21124656]
[1754458141600,4.11212197,163.88,163.85,24.21124656]
[1754458141786,4.11212197,163.87,163.85,23.51124656]
[1754458141985,4.11212197,163.86,163.85,23.51124656]
[1754458142185,4.11212197,163.87,163.85,23.51124656]
[1754458142406,4.11212197,163.86,163.85,23.51124656]
[1754458142574,0.03,163.89,163.85,30.31438967]
[1754458142778,4.1101788,163.88,163.85,30.31438967]
[1754458142995,4.1101788,163.87,163.85,30.31438967]
[1754458143201,4.1101788,163.86,163.85,30.31438967]
[1754458143412,4.1101788,163.88,163.85,30.31438967]
[1754458143592,4.1101788,163.87,163.85,30.31438967]
[1754458143795,0.7,163.89,163.86,9.07503099]
[1754458143993,4.1097135,163.88,163.86,9.07503099]
[1754458144303,4.1097135,163.87,163.86,6.10271565]
[1754458144507,4.1097135,163.88,163.85,29.61428707]
[1754458144717,4.1097135,163.87,163.85,30.28428707]
[1754458144898,4.1097135,163.88,163.85,30.28428707]
[1754458145091,4.1097135,163.87,163.85,15.10621557]
[1754458145291,0.7,163.86,163.83,15.10621557]
[1754458145498,0.7,163.85,163.83,15.10621557]
[1754458145696,4.1097135,163.88,163.84,8.40503099]
[1754458145899,4.1097135,163.87,163.84,9.07503099]
[1754458146199,4.1097135,163.86,163.84,9.07503099]
[1754458146390,4.1097135,163.87,163.83,15.10621557]
[1754458146714,4.8097135,163.86,163.83,23.51124656]
[1754458146896,0.7,163.86,163.83,23.51124656]
[1754458147095,4.8097135,163.86,163.83,24.18124656]
[1754458147289,4.1097135,163.87,163.84,9.07503099]
[1754458147618,4.1097135,163.86,163.84,9.07503099]
[1754458147816,4.1097135,163.87,163.84,9.07503099]
[1754458148109,4.1097135,163.86,163.84,9.07503099]
[1754458148314,4.1097135,163.87,163.84,9.07503099]
[1754458148519,0.7,163.88,163.84,9.07503099]
[1754458148520,4.1097135,163.86,163.84,9.07503099]
[1754458148715,4.1097135,163.87,163.84,9.07503099]
[1754458148917,4.1097135,163.86,163.84,9.07503099]
[1754458149101,4.1097135,163.87,163.84,9.07503099]
[1754458149302,4.1097135,163.86,163.84,9.07503099]
[1754458149608,0.7,163.86,163.83,23.51124656]
[1754458149988,4.8097135,163.86,163.83,23.51124656]
[1754458150292,0.7,163.86,163.83,23.51124656]
[1754458150492,4.8097135,163.86,163.83,24.18124656]
[1754458150696,0.7,163.86,163.83,24.18124656]
[1754458150897,4.8097135,163.86,163.83,15.77621557]
[1754458151098,0.7,163.86,163.83,24.18124656]
[1754458151318,4.8097135,163.86,163.83,24.18124656]
[1754458151528,4.8097135,163.86,163.83,15.10621557]
[1754458152908,4.1097135,163.86,163.83,24.18124656]
[1754458153223,4.1097135,163.86,163.84,0.67]
[1754458153409,4.1097135,163.85,163.84,0.67]
[1754458153614,4.1097135,163.86,163.83,23.51124656]
[1754458153817,4.1097135,163.85,163.83,23.51124656]
[1754458154013,4.1097135,163.86,163.83,24.18124656]
[1754458154214,4.1097135,163.85,163.83,24.18124656]
[1754458154420,4.1097135,163.86,163.83,24.18124656]
[1754458154596,4.1097135,163.85,163.83,24.18124656]
[1754458154794,4.1097135,163.86,163.83,24.18124656]
[1754458155018,4.1097135,163.85,163.83,24.18124656]
[1754458155317,4.1097135,163.86,163.83,24.18124656]
[1754458155492,4.1097135,163.85,163.83,24.18124656]
[1754458155820,4.1097135,163.86,163.83,15.77621557]
[1754458156124,4.1097135,163.85,163.83,24.18124656]
[1754458156622,4.1097135,163.86,163.83,24.18124656]
[1754458156815,4.1097135,163.85,163.83,24.18124656]
[1754458157007,4.1097135,163.86,163.83,24.18124656]
[1754458157203,4.1097135,163.85,163.83,24.18124656]
[1754458157405,4.1097135,163.86,163.83,24.18124656]
[1754458157629,4.1097135,163.85,163.83,24.18124656]
[1754458158099,0.7,163.84,163.81,141.50503099]
[1754458158303,4.1097135,163.85,163.82,15.77621557]
[1754458158501,4.1097135,163.85,163.82,15.10621557]
[1754458158708,0.7,163.84,163.82,15.10621557]
[1754458159230,0.7,163.84,163.81,97.56503099]
[1754458159231,4.8097135,163.84,163.81,97.56503099]
[1754458160026,4.8097135,163.84,163.81,98.23503099]
[1754458161327,4.1097135,163.84,163.81,98.23503099]
[1754458161628,4.8097135,163.84,163.81,98.23503099]
[1754458162632,4.1097135,163.84,163.81,98.23503099]
[1754458162800,4.1097135,163.84,163.81,89.83]
[1754458163125,4.1097135,163.84,163.81,9.13503099]
[1754458164831,4.8097135,163.84,163.81,9.13503099]
[1754458165912,4.1097135,163.83,163.81,9.13503099]
[1754458166423,0.7,163.84,163.81,9.13503099]
[1754458166613,4.11110298,163.84,163.81,8.46503099]
[1754458166922,4.11110298,163.84,163.82,0.67]
[1754458167813,4.81110298,163.84,163.81,9.13503099]
[1754458170430,0.7,163.84,163.81,9.13503099]
[1754458170805,0.7,163.84,163.81,0.73]
[1754458171101,4.11134763,163.83,163.81,9.13503099]
[1754458171943,0.7,163.84,163.81,0.06]
[1754458171944,0.7,163.82,163.81,0.06]
[1754458172102,57.07700788,163.82,163.81,0.06]
[1754458172612,54.04588986,163.82,163.81,0.06]
[1754458172814,48.67197689,163.82,163.81,0.06]
[1754458173030,54.04588986,163.82,163.81,0.06]
[1754458173216,59.1850744,163.82,163.81,0.06]
[1754458173838,60.15015063,163.82,163.81,0.06]
[1754458174241,47.97197689,163.82,163.81,0.06]
[1754458174561,47.95197689,163.82,163.81,0.06]
[1754458174943,47.95197689,163.82,163.81,0.72]
[1754458175152,47.95197689,163.82,163.81,9.11303938]
[1754458175338,4.11197689,163.82,163.81,9.11303938]
[1754458175529,4.11197689,163.82,163.81,0.06]
[1754458175945,4.11197689,163.82,163.81,9.11303938]
[1754458176158,4.11197689,163.83,163.81,15.21767279]
[1754458176362,4.11197689,163.82,163.81,8.45303938]
[1754458176664,4.11197689,163.82,163.81,0.06]
[1754458176850,4.11197689,163.82,163.81,9.11303938]
[1754458177267,4.11197689,163.82,163.81,30.32388836]
[1754458177483,4.11197689,163.84,163.81,30.32388836]
[1754458177647,4.11197689,163.83,163.82,9.05303938]
[1754458179344,4.11197689,163.83,163.82,0.66]
[1754458179565,4.11197689,163.83,163.81,112.65925495]
[1754458179782,4.11197689,163.82,163.81,113.31925495]
[1754458180072,4.80197689,163.84,163.81,89.16]
[1754458180242,4.11197689,163.83,163.81,89.16]
[1754458180433,4.11197689,163.82,163.81,89.16]
[1754458182847,4.80197689,163.82,163.81,89.16]
[1754458183068,4.11197689,163.82,163.81,89.16]
[1754458183266,4.11197689,163.82,163.81,89.82]
[1754458183973,4.11197689,163.82,163.81,0.72]
[1754458184180,59.0263097,163.85,163.81,0.72]
[1754458184181,4.11197689,163.84,163.81,0.72]
[1754458184360,4.11197689,163.83,163.81,0.72]
[1754458184564,4.11197689,163.82,163.81,0.72]
[1754458185276,4.11197689,163.82,163.81,15.21767279]
[1754458185474,4.11197689,163.84,163.81,15.21767279]
[1754458185680,43.84,163.85,163.83,8.39303938]
[1754458185881,4.10894748,163.84,163.83,8.39303938]
[1754458186184,4.10894748,163.84,163.83,9.05303938]
[1754458186540,4.10894748,163.84,163.83,0.66]
[1754458186747,4.79894748,163.84,163.81,0.06]
[1754458186947,4.79894748,163.83,163.81,0.06]
[1754458187163,4.10894748,163.82,163.81,0.06]
[1754458190575,4.79894748,163.82,163.81,0.06]
[1754458192552,4.10894748,163.82,163.81,0.06]
[1754458194883,4.13894748,163.82,163.81,0.06]
[1754458195556,4.13894748,163.82,163.81,0.72]
[1754458197970,4.13894748,163.82,163.81,0.06]
[1754458203164,4.13894748,163.82,163.81,0.72]
[1754458203395,4.13894748,163.82,163.81,9.11303938]
[1754458203895,4.13894748,163.82,163.81,14.55767279]
[1754458204060,4.13894748,163.82,163.81,15.25767279]
[1754458205200,4.13894748,163.82,163.81,30.36388836]
[1754458206402,4.13894748,163.82,163.81,29.66388836]
[1754458207506,4.13894748,163.82,163.81,97.55303938]
[1754458207801,4.13894748,163.82,163.81,103.65767279]
[1754458208002,4.13894748,163.82,163.81,95.26463341]
[1754458208205,4.13894748,163.82,163.81,104.35767279]
[1754458208408,4.13894748,163.82,163.81,119.46388836]
[1754458208577,0.03,163.82,163.81,119.46388836]
[1754458209401,0.03,163.82,163.81,123.57829936]
[1754458212535,0.03,163.84,163.82,15.10621557]
[1754458212699,0.03,163.84,163.83,67.21925495]
[1754458212902,0.03,163.84,163.83,67.91925495]
[1754458214105,0.03,163.84,163.83,74.02314312]
[1754458214301,0.03,163.84,163.83,163.12314312]
[1754458214521,0.03,163.84,163.83,191.56701012]
[1754458217198,0.03,163.84,163.83,183.17397074]
[1754458217418,0.03,163.84,163.83,190.86701012]
[1754458217814,0.75,163.84,163.81,8.45303938]
[1754458218023,0.75,163.84,163.81,0.06]
[1754458218238,13.25296947,163.84,163.81,0.06]
[1754458218535,0.72,163.83,163.81,0.06]
[1754458218945,4.1397336,163.84,163.81,0.06]
[1754458218946,0.72,163.82,163.81,0.06]
[1754458219447,0.75,163.84,163.81,0.06]
[1754458219738,0.03,163.84,163.81,0.06]
[1754458219939,0.72,163.83,163.81,0.06]
[1754458220333,0.72,163.82,163.81,0.06]
[1754458221265,0.75,163.84,163.81,8.45303938]
[1754458221414,0.75,163.84,163.83,8.39303938]
[1754458221415,0.03,163.84,163.83,8.39303938]
[1754458221929,4.14033422,163.84,163.83,8.39303938]
[1754458222232,0.03,163.84,163.83,8.39303938]
[1754458222438,4.14033422,163.84,163.83,8.39303938]
[1754458222749,4.86033422,163.84,163.82,29.60339295]
[1754458222957,0.72,163.83,163.82,29.60339295]
[1754458223155,0.03,163.84,163.82,29.60339295]
[1754458223360,0.03,163.84,163.83,8.39303938]
[1754458223522,4.14026134,163.84,163.83,8.39303938]
[1754458223939,4.86026134,163.84,163.82,29.60339295]
[1754458224141,0.72,163.83,163.82,29.60339295]
[1754458224335,0.75,163.84,163.82,29.60339295]
[1754458224527,0.75,163.84,163.83,8.39303938]
[1754458224733,4.86026762,163.84,163.83,8.39303938]
[1754458225421,4.14026762,163.84,163.83,8.39303938]
[1754458225621,4.14026762,163.84,163.82,21.21035357]
[1754458225822,0.03,163.84,163.83,8.39303938]
[1754458226040,4.1402789,163.84,163.83,8.39303938]
[1754458227048,4.1402789,163.84,163.83,15.19692755]
[1754458227356,0.03,163.84,163.83,15.19692755]
[1754458227552,4.1402789,163.84,163.83,15.19692755]
[1754458227724,0.03,163.84,163.83,15.19692755]
[1754458227925,4.1402789,163.84,163.83,15.19692755]
[1754458228223,0.03,163.84,163.83,8.39303938]
[1754458228552,4.1402789,163.84,163.83,8.39303938]
[1754458229765,4.1402789,163.84,163.82,21.21034172]
[1754458230060,4.1402789,163.84,163.83,8.39303938]
[1754458230740,0.03,163.84,163.83,8.39303938]
[1754458230934,4.1402789,163.84,163.83,8.39303938]
[1754458231139,0.03,163.84,163.83,8.39303938]
[1754458231338,4.1402789,163.84,163.83,8.39303938]
[1754458231552,0.03,163.84,163.83,8.39303938]
[1754458231759,4.1402789,163.84,163.83,8.39303938]
[1754458231952,0.03,163.84,163.83,8.39303938]
[1754458232257,4.8602789,163.84,163.83,8.39303938]
[1754458232562,0.75,163.84,163.83,8.39303938]
[1754458232854,4.8602789,163.84,163.83,8.39303938]
[1754458233055,0.75,163.84,163.83,8.39303938]
[1754458233255,4.8602789,163.84,163.83,8.39303938]
[1754458233438,0.75,163.84,163.83,8.39303938]
[1754458233761,4.8602789,163.84,163.82,8.39303938]
[1754458233942,4.11094505,163.83,163.81,0.06]
[1754458234143,4.80094505,163.83,163.81,0.06]
[1754458234450,0.69,163.82,163.81,8.45303938]
[1754458234862,4.11094505,163.83,163.81,14.55767279]
[1754458235157,4.11094505,163.83,163.82,8.39303938]
[1754458235667,4.11094505,163.83,163.81,6.16463341]
[1754458235961,4.11094505,163.83,163.82,8.39303938]
[1754458236537,4.11094505,163.83,163.81,6.16463341]
[1754458236753,4.11140484,163.83,163.82,8.39303938]
[1754458237169,4.11140484,163.83,163.81,6.16463341]
[1754458237377,4.11140484,163.83,163.82,8.39303938]
[1754458237862,0.72,163.84,163.83,15.10621557]
[1754458237863,0.03,163.84,163.83,15.10621557]
[1754458238083,0.03,163.84,163.83,24.21925495]
[1754458238572,0.03,163.84,163.83,24.82964376]
[1754458238743,0.03,163.86,163.83,24.82964376]
[1754458238744,0.03,163.86,163.85,49.49925495]
[1754458238931,0.03,163.87,163.86,15.10621557]
[1754458239132,0.03,163.87,163.86,15.82621557]
[1754458239348,0.03,163.87,163.86,21.92898622]
[1754458239551,0.03,163.88,163.86,30.3220256]
[1754458239752,0.03,163.88,163.87,24.82949477]
[1754458240558,0.03,163.89,163.88,15.10621557]
[1754458240770,0.03,163.89,163.88,67.85925495]
[1754458241446,0.03,163.89,163.88,73.96128082]
[1754458243247,0.03,163.91,163.9,41.10621557]
[1754458243443,0.03,163.91,163.9,101.51229433]
[1754458243644,0.03,163.91,163.9,102.23229433]
[1754458244545,0.03,163.91,163.9,108.33357559]
[1754458245183,4.82544725,163.97,163.91,23.49925495]
[1754458245345,0.03,163.97,163.93,23.49925495]
[1754458245749,0.03,163.97,163.93,15.82621557]
[1754458245944,0.79,163.94,163.93,23.49925495]
[1754458246643,0.1,163.94,163.93,29.59941965]
[1754458248472,0.1,163.94,163.93,30.31941965]
[1754458249380,0.1,163.94,163.93,58.76164565]
[1754458250448,0.1,163.94,163.93,56.31941965]
[1754458250660,0.1,163.94,163.93,55.59941965]
[1754458251255,0.1,163.94,163.93,56.31941965]
[1754458252682,0.1,163.94,163.93,55.59941965]
[1754458253460,0.79,163.94,163.93,55.59941965]
[1754458253665,0.79,163.94,163.93,8.39303938]
[1754458253855,0.79,163.94,163.92,51.97303938]
[1754458254175,0.79,163.94,163.93,8.39303938]
[1754458254557,0.79,163.94,163.92,8.39303938]
[1754458254786,0.79,163.94,163.91,15.10621557]
[1754458254964,0.79,163.94,163.91,8.39303938]
[1754458255571,0.1,163.94,163.93,8.39303938]
[1754458255976,0.1,163.94,163.93,23.49925495]
[1754458256252,0.1,163.94,163.93,67.77925495]
[1754458256861,0.03,163.97,163.94,36.45548968]
[1754458257055,0.03,163.97,163.96,8.39303938]
[1754458257774,0.72,163.97,163.94,8.39303938]
[1754458258455,0.69,163.96,163.94,8.39303938]
[1754458258661,0.69,163.96,163.95,8.39303938]
[1754458259169,0.03,163.97,163.95,14.4922995]
[1754458259361,0.03,163.97,163.96,8.39303938]
[1754458259564,0.03,163.97,163.95,8.39303938]
[1754458259961,0.69,163.96,163.95,8.39303938]
[1754458260373,0.69,163.96,163.92,8.39303938]
[1754458260680,8.39303938,163.95,163.91,8.39303938]
[1754458260860,0.69,163.94,163.9,8.39303938]
[1754458261261,0.69,163.94,163.91,8.39303938]
[1754458261570,0.72,163.94,163.9,8.39303938]
[1754458262278,6.81979455,163.94,163.9,8.39303938]
[1754458262587,0.69,163.93,163.89,14.49462822]
[1754458263486,0.69,163.92,163.9,8.39303938]
[1754458264466,0.69,163.92,163.9,14.49424068]